bitfinex/quotes_ETHUSD_20260302
["timestamp","ask_amount","ask_price","bid_price","bid_amount"]
[1772448695741,5.8635917,1950.0,1949.3,4.22402823]
[1772448696827,1.28182046,1950.4,1949.5,4.22402823]
[1772448697031,1.28177062,1950.5,1949.5,4.22402823]
[1772448697264,5.12671822,1950.6,1949.5,4.22402823]
[1772448697562,0.001,1951.2,1950.5,4.22402823]
[1772448697727,0.001,1951.2,1950.6,1.28165692]
[1772448698054,0.001,1951.2,1950.6,5.50568515]
[1772448698649,4.14176453,1951.1,1950.6,4.22402823]
[1772448699730,4.14176453,1951.0,1950.6,5.50562559]
[1772448699936,4.14176453,1951.1,1950.6,5.50562559]
[1772448700761,4.14276453,1951.1,1950.6,5.50562559]
[1772448702361,4.14176453,1951.0,1950.6,5.50567933]
[1772448703861,4.57999444,1950.8,1950.1,5.50601376]
[1772448704237,5.42336291,1950.7,1950.1,5.50601376]
[1772448707864,4.14176453,1950.6,1950.2,4.67473915]
[1772448708165,0.001,1951.1,1950.4,4.67473915]
[1772448708369,4.2073303,1951.1,1950.4,4.67473915]
[1772448708775,4.2073303,1951.1,1950.5,5.95646178]
[1772448709181,0.001,1951.1,1950.6,4.67473915]
[1772448710361,5.63381218,1951.1,1950.5,1.28172263]
[1772448710876,5.63381218,1951.1,1950.5,4.67473915]
[1772448711246,0.001,1951.1,1950.5,4.67473915]
[1772448712388,0.001,1951.1,1950.6,4.67473915]
[1772448712687,0.001,1951.1,1950.8,4.67473915]
[1772448712854,0.001,1951.0,1950.8,4.67473915]
[1772448713184,0.001,1951.0,1950.9,1.28145983]
[1772448716190,0.001,1951.2,1951.0,4.67473915]
[1772448716392,5.63236456,1951.8,1951.0,4.67473915]
[1772448716691,4.35148303,1951.7,1951.0,4.67473915]
[1772448716877,0.001,1951.7,1951.0,4.67473915]
[1772448717449,0.001,1951.7,1951.1,1.28132848]
[1772448717650,0.001,1951.6,1951.2,4.67473915]
[1772448717852,0.001,1951.8,1951.2,4.67473915]
[1772448719081,4.35248303,1951.8,1951.2,4.67473915]
[1772448719453,5.63339154,1951.8,1951.3,1.28119715]
[1772448720170,0.001,1951.7,1951.3,5.9559363]
[1772448720353,0.001,1951.8,1951.4,4.67473915]
[1772448721074,0.001,1951.7,1951.3,1.28119715]
[1772448721379,5.63229617,1951.9,1951.3,1.28119715]
[1772448721380,5.63329617,1951.9,1951.3,1.28119715]
[1772448721577,0.001,1951.8,1951.3,5.9559363]
[1772448721876,0.001,1951.7,1951.1,5.95601758]
[1772448722079,4.35248303,1951.8,1951.1,5.95601758]
[1772448722659,0.001,1951.7,1951.1,5.95601758]
[1772448722876,4.35148303,1951.6,1950.9,1.28145888]
[1772448723054,4.35248303,1951.6,1950.9,1.28145888]
[1772448723256,4.35148303,1951.4,1950.9,1.28145888]
[1772448723776,5.63265439,1951.4,1950.9,1.28145888]
[1772448724285,7.85394455,1951.8,1951.0,4.67473915]
[1772448724286,4.35148303,1951.6,1951.0,4.67473915]
[1772448724770,4.35148303,1951.6,1950.9,1.28145888]
[1772448724973,4.35248303,1951.5,1950.9,1.28145888]
[1772448725782,4.35148303,1951.3,1950.8,4.67473915]
[1772448726092,4.35148303,1951.3,1950.7,0.0011]
[1772448726093,4.35148303,1951.3,1950.7,1.28267584]
[1772448726256,0.001,1951.2,1950.7,1.28267584]
[1772448726785,0.001,1951.2,1950.7,0.0011]
[1772448726976,0.001,1951.2,1950.7,1.28268893]
[1772448727156,0.001,1951.2,1950.7,4.67583915]
[1772448727658,4.35148303,1951.0,1950.7,0.0011]
[1772448727983,5.63291444,1951.0,1950.7,0.0011]
[1772448730185,1.28119715,1951.3,1950.7,4.67583915]
[1772448730377,0.001,1951.2,1950.7,4.67583915]
[1772448730556,0.001,1951.3,1950.7,4.67583915]
[1772448731972,0.001,1951.2,1950.7,4.67583915]
[1772448732379,0.001,1951.1,1950.7,5.95742651]
[1772448733391,4.67955742,1951.1,1950.7,0.0011]
[1772448733601,0.001,1951.0,1950.7,0.0011]
[1772448735292,0.001,1951.0,1950.7,4.69055502]
[1772448737194,0.001,1951.0,1950.8,0.0011]
[1772448740202,0.001,1951.0,1950.8,4.81987936]
[1772448741081,5.12565042,1951.4,1950.8,4.81987936]
[1772448741082,4.1831897,1951.4,1950.8,4.81987936]
[1772448741280,4.1831897,1951.4,1950.9,6.10023919]
[1772448741596,0.001,1951.3,1950.8,6.10135249]
[1772448741801,4.79265909,1951.3,1950.8,6.10135249]
[1772448742298,4.79165909,1951.3,1950.8,6.10135249]
[1772448746387,6.07286277,1951.3,1950.8,6.10135249]
[1772448746587,0.001,1951.2,1950.8,6.10135249]
[1772448746785,6.07286277,1951.3,1950.8,6.10135249]
[1772448747104,4.79265909,1951.2,1950.8,0.0011]
[1772448747610,4.79265909,1951.2,1950.8,1.28261765]
[1772448748108,4.79265909,1951.2,1950.8,6.10139701]
[1772448748612,0.001,1951.1,1950.9,4.81877936]
[1772448748903,0.001,1951.1,1950.9,4.81987936]
[1772448749204,0.001,1951.4,1951.0,4.81877936]
[1772448749605,0.001,1951.4,1951.2,4.81877936]
[1772448751617,0.001,1951.4,1951.2,6.10002565]
[1772448751907,0.001,1951.4,1951.1,1.28127639]
[1772448752279,4.79265909,1951.4,1950.9,1.28251146]
[1772448752689,4.79265909,1951.4,1950.9,0.0011]
[1772448752904,4.1733258,1952.0,1951.1,4.81877936]
[1772448753077,1.28132589,1952.0,1951.3,4.81877936]
[1772448753278,1.28132589,1952.0,1951.1,2.417]
[1772448753279,8.96529825,1952.2,1951.5,4.81877936]
[1772448754211,0.002,1952.2,1951.7,4.81877936]
[1772448756113,0.002,1952.2,1951.8,6.0996483]
[1772448757510,0.002,1952.2,1951.9,4.81877936]
[1772448759991,0.002,1952.2,1951.9,6.09956522]
[1772448760686,0.002,1952.2,1951.7,6.09967688]
[1772448760895,4.79365909,1952.2,1951.5,4.81877936]
[1772448761919,4.79365909,1952.2,1951.8,0.0011]
[1772448762091,4.79165909,1952.0,1951.6,1.2810002]
[1772448762291,4.79165909,1952.0,1951.7,0.0011]
[1772448764422,1.28077192,1952.0,1951.7,0.0011]
[1772448764626,4.79165909,1951.9,1951.7,0.0011]
[1772448766147,6.07333537,1952.1,1951.7,0.0011]
[1772448766302,4.79165909,1952.0,1951.7,0.0011]
[1772448766824,0.001,1952.1,1951.7,6.39705832]
[1772448767135,0.001,1952.1,1951.7,4.81987936]
[1772448767998,4.76951582,1952.0,1951.7,0.0011]
[1772448770230,6.05025898,1952.0,1951.7,0.0011]
[1772448770997,4.76951582,1951.9,1951.5,0.0011]
[1772448771522,4.76951582,1951.7,1951.0,0.00153886]
[1772448771722,2.62296894,1951.8,1951.0,0.00153886]
[1772448771723,4.76951582,1951.5,1951.0,0.00153886]
[1772448773125,1.28113149,1951.4,1951.0,0.00153886]
[1772448773324,6.05064731,1951.4,1951.0,0.00153886]
[1772448773526,4.76951582,1951.4,1951.0,0.00153886]
[1772448774109,1.28111296,1951.5,1951.0,0.00153886]
[1772448774596,6.05062878,1951.5,1951.0,0.00153886]
[1772448775002,4.76951582,1951.5,1951.0,0.00153886]
[1772448775299,4.76951582,1951.5,1951.1,0.0011]
[1772448775500,6.05058329,1951.5,1951.1,0.0011]
[1772448779024,4.76951582,1951.4,1951.1,0.0011]
[1772448779729,6.05066741,1951.4,1951.1,0.0011]
[1772448780510,4.76951582,1951.3,1951.1,0.0011]
[1772448782634,6.05072853,1951.3,1951.1,0.0011]
[1772448783531,4.76951582,1951.3,1951.1,0.0011]
[1772448783831,6.05071761,1951.3,1951.1,0.0011]
[1772448784011,4.76951582,1951.3,1951.1,0.0011]
[1772448784213,6.05071313,1951.3,1951.1,0.0011]
[1772448786617,1.28119731,1951.3,1951.1,0.0011]
[1772448786819,4.76951582,1951.2,1950.7,0.0011]
[1772448787142,4.76951582,1951.2,1950.5,0.0011]
[1772448788051,4.76951582,1951.2,1951.0,0.0011]
[1772448788332,4.76951582,1951.0,1950.5,0.0011]
[1772448788523,4.76951582,1950.9,1950.5,0.0011]
[1772448790365,6.05104134,1950.8,1950.5,0.0011]
[1772448790960,6.70249288,1951.3,1950.5,4.50703683]
[1772448790961,4.76951582,1951.2,1950.5,4.50703683]
[1772448793066,4.76951582,1951.2,1950.6,5.77715901]
[1772448793067,6.05084288,1951.2,1950.6,5.77715901]
[1772448793548,6.05084288,1951.2,1950.6,4.49550209]
[1772448793549,4.81485602,1951.1,1950.6,4.49550209]
[1772448793755,4.81485602,1951.1,1950.5,1.28282241]
[1772448795160,4.81485602,1950.9,1950.5,0.0011]
[1772448797231,6.09637269,1950.9,1950.5,0.0011]
[1772448797829,4.46249969,1950.8,1950.5,0.0011]
[1772448798265,4.46249969,1951.2,1950.5,4.46880562]
[1772448799262,1.28132848,1951.1,1950.5,5.75048484]
[1772448799470,4.46249969,1951.0,1950.5,5.75048484]
[1772448799769,4.46249969,1951.0,1950.5,4.46880562]
[1772448799959,4.46249969,1951.0,1950.5,0.0011]
[1772448800257,4.46249969,1951.0,1950.6,0.0011]
[1772448802834,4.46249969,1950.8,1950.4,0.0011]
[1772448804561,4.46249969,1950.8,1950.1,4.46770562]
[1772448804760,4.46249969,1950.8,1950.1,5.7496898]
[1772448804954,4.46249969,1950.6,1950.1,4.46770562]
[1772448806566,4.46249969,1950.6,1950.1,5.74968962]
[1772448806937,5.12562416,1951.0,1950.5,4.46770562]
[1772448806938,4.46249969,1951.0,1950.5,4.46770562]
[1772448808261,4.46249969,1951.2,1950.5,4.46770562]
[1772448810365,4.46249969,1951.0,1950.5,4.46770562]
[1772448812256,1.28132848,1951.1,1950.6,4.46880562]
[1772448812570,0.001,1950.9,1950.6,4.46880562]
[1772448813949,4.46249969,1951.1,1950.6,4.46880562]
[1772448814478,5.74385412,1951.1,1950.6,4.46880562]
[1772448815674,5.12507972,1951.2,1950.6,4.46880562]
[1772448815675,5.74372028,1951.3,1950.7,4.46770562]
[1772448819481,4.46249969,1951.2,1950.7,4.46770562]
[1772448821573,1.28132848,1951.1,1950.7,4.46770562]
[1772448821902,4.46249969,1951.0,1950.6,0.0011]
[1772448822268,4.46249969,1951.0,1950.6,4.46880562]
[1772448824301,5.74394323,1951.0,1950.6,4.46880562]
[1772448824612,5.74377962,1951.2,1950.7,4.46770562]
[1772448825103,0.001,1950.9,1950.7,4.46770562]
[1772448826904,0.001,1950.9,1950.8,4.46770562]
[1772448827294,7.34249969,1951.4,1950.8,4.46770562]
[1772448827295,1.28217492,1951.4,1950.8,4.46770562]
[1772448828187,6.12960249,1951.4,1950.8,4.46770562]
[1772448829396,0.001,1951.4,1951.1,4.45355315]
[1772448830186,1.28216538,1951.4,1951.1,4.45355315]
[1772448830491,0.001,1951.4,1951.1,4.45355315]
[1772448830881,1.28213407,1951.4,1951.1,4.45355315]
[1772448831784,0.001,1951.4,1951.1,4.45355315]
[1772448837619,0.001,1951.3,1951.1,4.45355315]
[1772448844134,5.32044683,1951.2,1950.8,0.0011]
[1772448844319,4.84742757,1951.2,1950.8,0.0011]
[1772448844620,4.84742757,1951.2,1950.8,4.45465315]
[1772448844917,4.84742757,1951.2,1950.8,0.0011]
[1772448845705,4.84742757,1951.0,1950.8,0.0011]
[1772448847735,6.12888086,1951.0,1950.8,0.0011]
[1772448849433,1.28145329,1951.0,1950.8,4.45465315]
[1772448849812,9.97256002,1951.2,1950.9,4.45465315]
[1772448850016,9.97356002,1951.2,1950.9,4.45465315]
[1772448851541,4.84742757,1951.1,1950.7,2.76819052]
[1772448851948,4.84742757,1950.9,1950.5,0.00682601]
[1772448854835,4.83367648,1950.7,1950.5,0.0011]
[1772448856941,1.28165692,1950.6,1950.5,0.0011]
[1772448857339,6.11532142,1950.7,1950.5,0.0011]
[1772448858043,4.9853366,1950.6,1950.5,0.0011]
[1772448858846,5.45835586,1950.6,1949.9,5.21971306]
[1772448859138,5.45835586,1950.4,1949.8,0.29816763]
[1772448859342,5.45835586,1950.4,1949.5,3.96910455]
[1772448859519,5.45835586,1950.4,1949.6,0.14948499]
[1772448859914,5.45835586,1950.4,1949.3,0.31072231]
[1772448860125,4.17172263,1950.5,1949.5,0.31072231]
[1772448860126,4.9853366,1950.2,1949.5,0.31072231]
[1772448861145,1.28198553,1950.1,1949.5,0.31072231]
[1772448861340,4.9853366,1950.0,1949.5,0.31072231]
[1772448861544,4.9853366,1950.0,1949.5,1.5931021]
[1772448862643,4.9853366,1950.0,1949.6,0.0011]
[1772448863042,4.9853366,1949.8,1949.6,0.0011]
[1772448863254,4.9853366,1949.6,1949.2,0.32333492]
[1772448863928,4.9853366,1949.6,1949.3,0.0011]
[1772448865226,1.54537039,1950.1,1949.6,1.61176493]
[1772448865426,1.54537039,1950.1,1949.6,0.32945061]
[1772448866124,1.54537039,1950.1,1949.5,1.28233654]
[1772448866450,1.54537039,1950.1,1949.4,4.96383412]
[1772448866654,1.54537039,1950.1,1949.3,0.0011]
[1772448868328,1.54537039,1950.1,1949.3,4.96493412]
[1772448868529,2.888,1950.0,1949.3,4.96493412]
[1772448868742,4.9853366,1949.9,1949.3,4.96493412]
[1772448869748,4.9853366,1949.7,1949.3,4.96493412]
[1772448870830,4.9853366,1949.7,1949.3,6.24744404]
[1772448871148,4.9853366,1949.7,1949.3,4.96493412]
[1772448871365,4.9853366,1949.7,1949.3,6.24744311]
[1772448871755,6.2674587,1949.9,1949.4,4.96383412]
[1772448871934,4.9853366,1949.8,1949.4,4.96383412]
[1772448872133,4.9853366,1949.8,1949.3,0.0011]
[1772448873250,7.19676433,1949.8,1949.0,0.00263886]
[1772448873453,4.9853366,1949.7,1949.0,0.00263886]
[1772448873649,4.9853366,1949.5,1949.0,0.00263886]
[1772448873859,4.9853366,1949.3,1949.0,0.00263886]
[1772448876127,6.26791406,1949.2,1949.1,0.0011]
[1772448876524,4.9853366,1949.2,1949.1,0.0011]
[1772448876923,4.17247503,1949.4,1949.1,0.0011]
[1772448877131,4.9853366,1949.4,1949.1,0.0011]
[1772448877758,4.9853366,1949.9,1949.2,4.96383412]
[1772448878652,4.9853366,1949.8,1949.3,1.28251167]
[1772448878831,4.9853366,1949.8,1949.4,4.96383412]
[1772448879532,4.9853366,1949.8,1949.3,1.28251167]
[1772448879739,4.9853366,1949.8,1949.3,6.24634579]
[1772448880955,6.26744001,1950.0,1949.4,4.96383412]
[1772448881143,9.15744001,1950.0,1949.4,4.96383412]
[1772448881331,4.9853366,1949.9,1949.4,4.96383412]
[1772448882357,4.9853366,1949.9,1949.2,6.2463873]
[1772448883965,4.9853366,1949.9,1949.2,1.28255318]
[1772448884167,4.9853366,1949.9,1949.1,4.96493412]
[1772448884168,4.9853366,1949.7,1949.1,4.96493412]
[1772448884366,2.89,1949.8,1949.1,4.96493412]
[1772448884542,7.8753366,1949.8,1949.1,4.96493412]
[1772448884743,4.9853366,1949.8,1949.1,4.96493412]
[1772448884942,4.9853366,1950.3,1949.5,4.96383412]
[1772448885142,4.9853366,1950.3,1949.3,5.11331911]
[1772448885483,4.9853366,1950.3,1949.4,2.38188]
[1772448885787,4.9853366,1950.3,1949.4,4.96383412]
[1772448887864,4.68712111,1950.1,1949.5,1.28238009]
[1772448888072,0.001,1950.2,1949.6,4.6758892]
[1772448889951,0.001,1950.2,1949.8,4.6758892]
[1772448890769,1.28179596,1950.4,1949.8,4.6758892]
[1772448890985,8.85389468,1950.5,1949.8,4.6758892]
[1772448891878,4.68712111,1950.4,1949.8,4.6758892]
[1772448892681,5.96981125,1950.6,1950.0,4.6758892]
[1772448893188,4.68812111,1950.6,1950.0,4.6758892]
[1772448893362,5.96978534,1950.6,1950.0,4.6758892]
[1772448893776,4.68812111,1950.6,1950.0,4.6758892]
[1772448894577,4.68812111,1950.6,1950.1,5.95787473]
[1772448894770,5.96978079,1950.6,1950.1,5.95787473]
[1772448895254,0.001,1950.6,1950.2,4.6758892]
[1772448896692,0.001,1950.6,1950.3,1.28185407]
[1772448896877,0.00153886,1951.0,1950.4,4.6758892]
[1772448897385,4.68865997,1951.0,1950.4,4.6758892]
[1772448897586,0.00153886,1951.0,1950.6,4.6758892]
[1772448897789,0.001,1951.2,1950.7,4.6758892]
[1772448898585,0.001,1951.2,1951.0,5.95728335]
[1772448898761,0.001,1951.3,1951.0,5.95728335]
[1772448899869,0.001,1951.1,1951.0,5.95728335]
[1772448900391,0.001,1951.4,1951.1,4.6758892]
[1772448900893,0.001,1951.4,1951.1,5.95721266]
[1772448901260,0.001,1951.4,1951.1,1.28132346]
[1772448901458,4.68812111,1951.4,1950.7,7.0478892]
[1772448901792,4.68712111,1951.1,1950.3,4.6758892]
[1772448902772,4.68712111,1950.9,1950.2,1.828]
[1772448903097,4.68712111,1950.9,1950.1,1.28194788]
[1772448903788,4.68712111,1950.9,1950.1,5.95783708]
[1772448904187,4.68712111,1950.9,1950.2,4.6758892]
[1772448905174,1.28152552,1950.8,1950.3,1.28185407]
[1772448905394,5.96864663,1950.8,1950.3,1.28185407]
[1772448907690,4.68712111,1951.0,1950.4,4.82537419]
[1772448907875,4.68712111,1951.2,1950.6,4.82537419]
[1772448908776,4.68712111,1951.2,1950.6,4.6758892]
[1772448910768,4.68712111,1951.0,1950.3,5.95771713]
[1772448911186,4.68712111,1951.0,1950.4,4.6758892]
[1772448911709,5.96842188,1951.2,1950.7,4.6769892]
[1772448912999,1.28224155,1951.3,1950.8,6.60858332]
[1772448913303,0.001,1951.3,1950.8,6.60858332]
[1772448914189,1.28220382,1951.3,1950.8,6.60858332]
[1772448914601,6.56317238,1951.3,1950.8,5.3270578]
[1772448916188,6.56317238,1951.3,1950.8,6.60857821]
[1772448916384,0.001,1951.3,1950.8,6.60857821]
[1772448916584,1.28220038,1951.3,1950.9,5.3270578]
[1772448918007,0.001,1951.3,1950.9,6.60850957]
[1772448918504,4.92498729,1951.3,1950.9,2.813739]
[1772448918700,4.92498729,1951.3,1950.8,1.2814845]
[1772448919009,4.92498729,1951.3,1950.8,6.53921455]
[1772448919510,4.92498729,1951.3,1950.8,5.25773005]
[1772448920104,6.20623181,1951.3,1950.8,6.53922565]
[1772448921608,6.20623181,1951.3,1950.8,5.25773005]
[1772448921793,4.92398729,1951.2,1950.8,6.53925061]
[1772448922193,6.20527165,1951.2,1950.8,5.25773005]
[1772448924015,6.20527165,1951.2,1950.9,0.0011]
[1772448924492,4.92398729,1951.1,1950.9,0.0011]
[1772448926592,6.2053696,1951.1,1950.9,0.0011]
[1772448930225,4.92398729,1951.0,1950.6,0.0011]
[1772448931411,4.92398729,1951.0,1950.6,5.25883005]
[1772448931802,6.20544712,1950.9,1950.6,5.25883005]
[1772448935914,6.20544712,1950.9,1950.7,0.0011]
[1772448937438,4.92398729,1950.8,1950.5,0.0011]
[1772448938112,4.42898729,1950.8,1950.5,0.0011]
[1772448939203,1.28159122,1950.7,1950.5,0.0011]
[1772448939730,1.28159122,1950.7,1950.5,5.25883005]
[1772448940931,1.28150372,1950.9,1950.5,6.54055226]
[1772448941129,6.20549101,1950.9,1950.5,5.25883005]
[1772448941706,4.92398729,1950.8,1950.5,5.25883005]
[1772448942433,4.92398729,1950.8,1950.4,0.0011]
[1772448943131,6.20557851,1950.7,1950.4,0.0011]
[1772448946940,7.81798729,1950.9,1950.4,5.25883005]
[1772448947138,4.92398729,1950.9,1950.4,5.25883005]
[1772448947829,6.20551171,1950.9,1950.4,6.54059709]
[1772448948021,6.20551171,1950.9,1950.5,0.0011]
[1772448948238,5.35377162,1950.8,1950.5,0.0011]
[1772448950239,5.35377162,1950.6,1950.2,0.0011]
[1772448951152,5.35377162,1950.6,1950.0,0.00153886]
[1772448951153,5.35377162,1950.5,1949.7,3.536117]
[1772448951451,5.35377162,1950.3,1949.6,1.72733542]
[1772448951738,5.35377162,1950.3,1949.5,2.91525405]
[1772448951942,5.35377162,1950.3,1949.5,4.19763354]
[1772448952411,5.35377162,1950.3,1949.5,1.28237949]
[1772448952412,5.35377162,1950.1,1949.5,1.28237949]
[1772448954353,5.35377162,1950.1,1949.4,3.00976072]
[1772448954531,5.35377162,1950.1,1949.4,3.00977437]
[1772448954532,5.35377162,1949.9,1949.4,3.00977437]
[1772448954919,5.35377162,1949.9,1949.4,1.72733542]
[1772448955238,5.35377162,1949.9,1949.3,2.25959948]
[1772448955849,5.35377162,1949.9,1949.3,0.0011]
[1772448956645,5.35377162,1949.7,1949.3,0.0011]
[1772448958660,5.35377162,1949.5,1949.3,0.0011]
[1772448960127,5.35377162,1949.5,1949.1,0.0011]
[1772448960748,5.35377162,1949.3,1948.9,0.0011]
[1772448962057,5.35377162,1949.7,1948.9,2.3127666]
[1772448962958,5.35377162,1949.5,1949.0,3.60261903]
[1772448963334,5.35377162,1949.7,1949.1,2.32789144]
[1772448963556,0.00153886,1950.0,1949.4,2.32789144]
[1772448964056,5.35531048,1950.0,1949.4,2.32789144]
[1772448964551,6.63736459,1950.0,1949.4,2.32789144]
[1772448964735,5.35531048,1950.0,1949.4,2.32789144]
[1772448964945,5.35531048,1950.0,1949.5,1.28238009]
[1772448965357,6.63736238,1950.0,1949.5,1.28238009]
[1772448965554,5.35531048,1950.0,1949.5,1.28238009]
[1772448965762,5.35531048,1950.0,1949.5,3.62580654]
[1772448965975,5.35531048,1950.0,1949.6,2.34342645]
[1772448966859,5.35531048,1950.0,1949.4,5.1295342]
[1772448967178,5.35531048,1950.0,1949.5,2.35105183]
[1772448967388,6.63736712,1950.0,1949.3,2.35847152]
[1772448967533,6.63736712,1950.0,1949.3,3.64093216]
[1772448970242,5.35531048,1950.0,1949.4,2.37992193]
[1772448970458,0.00153886,1950.0,1949.4,2.37992193]
[1772448970648,5.35531048,1950.0,1949.4,2.37992193]
[1772448971662,6.63736637,1950.0,1949.5,3.6691677]
[1772448972871,5.35477162,1949.9,1949.5,3.6691677]
[1772448973867,0.001,1949.9,1949.6,2.40664866]
[1772448975065,5.41892037,1950.0,1949.6,2.40664866]
[1772448975251,6.70097691,1950.0,1949.6,2.40664866]
[1772448977564,6.70097691,1950.0,1949.3,2.50753514]
[1772448977967,6.70097691,1950.0,1949.2,1.28257746]
[1772448979759,6.70097691,1950.0,1949.2,3.80164906]
[1772448981882,6.70097691,1950.0,1949.2,2.5190716]
[1772448982059,6.70097691,1950.0,1949.0,3.81558414]
[1772448982264,6.70097691,1950.0,1949.1,2.53562131]
[1772448983161,2.895,1949.9,1949.1,2.53562131]
[1772448983361,5.48901256,1949.8,1949.1,2.53562131]
[1772448984884,5.48901256,1949.8,1949.3,0.0011]
[1772448984885,5.48901256,1949.6,1949.3,0.0011]
[1772448987659,5.48901256,1949.6,1949.3,2.56187387]
[1772448990183,5.48901256,1949.6,1949.3,3.84436699]
[1772448991386,5.48901256,1949.6,1949.3,2.56187387]
[1772448993270,8.38501256,1949.8,1949.4,2.58768204]
[1772448993466,0.001,1949.9,1949.4,2.58768204]
[1772448994472,0.001,1949.9,1949.6,2.5917963]
[1772448994668,5.49001256,1949.9,1949.6,2.5917963]
[1772448996696,5.49001256,1949.9,1949.6,3.87409618]
[1772448997907,0.001,1949.8,1949.6,3.87409618]
[1772448998702,5.48901256,1950.1,1949.7,3.14298037]
[1772448998897,5.48901256,1950.1,1949.5,3.14298037]
[1772449000502,6.77100058,1950.1,1949.4,0.0011]
[1772449000708,5.80480505,1950.0,1949.4,3.16792682]
[1772449004207,5.48901256,1949.8,1949.4,4.45033077]
[1772449006074,5.48901256,1949.8,1949.4,0.0011]
[1772449006075,5.48901256,1949.6,1949.4,0.0011]
[1772449008508,6.77134039,1949.6,1949.3,0.0011]
[1772449008684,5.87861955,1949.4,1949.1,0.0011]
[1772449010314,5.87861955,1949.4,1949.3,0.0011]
[1772449012108,7.16106543,1949.4,1949.3,0.0011]
[1772449013600,10.06306543,1949.4,1949.3,0.0011]
[1772449017602,10.06906543,1949.4,1949.3,0.0011]
[1772449018001,5.87861955,1949.3,1949.1,0.0011]
[1772449018307,6.19441204,1949.3,1948.9,0.0011]
[1772449019831,7.16119701,1949.2,1948.9,3.18293569]
[1772449020113,2.91,1949.1,1948.9,3.18293569]
[1772449020501,5.87861955,1949.2,1948.9,3.18293569]
[1772449021696,5.87861955,1949.4,1948.9,3.18293569]
[1772449021899,8.78961955,1949.3,1949.0,3.18154224]
[1772449022123,5.87861955,1949.2,1948.9,4.46535524]
[1772449022399,5.87861955,1949.2,1948.9,3.18264224]
[1772449022993,5.87861955,1949.2,1949.0,0.0011]
[1772449023423,5.87861955,1949.2,1948.7,0.0011]
[1772449023792,7.1612446,1949.2,1948.7,3.18332365]
[1772449026001,7.1612446,1949.2,1948.7,4.46622539]
[1772449026828,7.1612446,1949.2,1948.7,3.18332365]
[1772449027415,7.1612446,1949.2,1948.7,4.46622498]
[1772449027612,7.1612446,1949.2,1948.8,3.18080067]
[1772449027925,5.87861955,1949.2,1948.8,3.18080067]
[1772449028226,7.16111462,1949.4,1948.9,3.18035617]
[1772449028400,5.87861955,1949.4,1948.9,3.18035617]
[1772449028729,8.79361955,1949.3,1948.9,3.18035617]
[1772449030229,0.001,1949.5,1948.9,3.18035617]
[1772449030429,0.001,1949.5,1949.1,3.17937861]
[1772449032415,5.87961955,1949.5,1949.1,3.17937861]
[1772449032609,5.87961955,1949.5,1949.2,1.28257746]
[1772449033332,5.87961955,1949.5,1949.2,4.4642175]
[1772449034552,0.001,1949.5,1949.3,4.46339069]
[1772449034708,0.001,1949.4,1949.3,4.46339069]
[1772449034912,5.32171412,1949.8,1949.4,3.1808885]
[1772449035108,8.23671412,1949.8,1949.4,3.1808885]
[1772449035524,0.001,1949.8,1949.4,3.1808885]
[1772449036702,0.001,1949.8,1949.5,4.46173615]
[1772449037207,0.001,1949.8,1949.6,3.17935606]
[1772449039933,0.001,1949.8,1949.5,4.4629496]
[1772449041225,0.001,1949.8,1949.6,3.17856691]
[1772449041438,5.81593842,1949.8,1949.5,1.28238009]
[1772449043736,5.81593842,1949.8,1949.5,3.1764477]
[1772449046142,5.81593842,1949.8,1949.6,1.28231432]
[1772449046342,5.81593842,1949.8,1949.5,4.45877423]
[1772449047849,0.001,1949.8,1949.5,4.45877423]
[1772449048056,0.00153886,1950.0,1949.8,3.17084381]
[1772449048260,5.81493884,1950.6,1950.2,5.37341266]
[1772449048427,5.81493884,1950.6,1950.2,5.68929112]
[1772449050529,7.09662358,1950.6,1950.2,5.37341266]
[1772449050726,5.81493842,1950.5,1949.8,6.65554366]
[1772449050945,5.81493842,1950.3,1949.8,6.65554366]
[1772449051929,5.81493842,1950.5,1949.8,6.65554366]
[1772449052144,8.72893842,1950.5,1949.8,6.65554366]
[1772449052462,5.81493842,1950.4,1949.8,6.65554366]
[1772449054828,7.09673995,1950.4,1949.8,6.65554366]
[1772449056053,7.09673,1950.4,1949.8,6.65554366]
[1772449060233,7.09673,1950.4,1949.9,5.37451266]
[1772449063680,7.09673,1950.4,1950.0,1.28205128]
[1772449064240,7.09673,1950.4,1949.9,6.65657551]
[1772449064564,5.81493842,1950.4,1949.9,6.65657551]
[1772449064942,7.09673411,1950.4,1949.9,6.65657551]
[1772449066071,5.81493842,1950.4,1949.9,6.65657551]
[1772449066258,7.09673107,1950.4,1949.9,6.65657551]
[1772449066459,5.81493842,1950.4,1949.9,6.65657551]
[1772449068274,0.001,1950.5,1949.9,6.65657551]
[1772449068573,4.2e-07,1950.6,1950.1,5.58012171]
[1772449070272,4.2e-07,1950.6,1950.3,5.58012171]
[1772449072260,0.001,1950.9,1950.6,5.58012171]
[1772449072461,5.5133866,1950.9,1950.6,5.58012171]
[1772449074765,5.5133866,1950.9,1950.6,6.86175862]
[1772449075160,5.51392546,1951.0,1950.6,6.86175862]
[1772449079582,0.00153886,1951.0,1950.7,5.58012171]
[1772449080555,0.00153886,1951.0,1950.9,5.58012171]
[1772449080756,5.5123866,1951.2,1950.9,5.58012171]
[1772449081873,5.5123866,1951.7,1950.9,5.58012171]
[1772449082076,5.5123866,1951.8,1951.3,5.58012171]
[1772449082460,5.5123866,1951.3,1950.8,6.86164723]
[1772449084071,5.5123866,1951.3,1950.8,5.58012171]
[1772449084390,5.5123866,1951.1,1950.6,6.86174215]
[1772449084769,6.793721,1951.1,1950.6,6.86174215]
[1772449084971,6.794721,1951.1,1950.6,6.86174215]
[1772449085662,0.001,1951.1,1950.8,5.58012171]
[1772449086992,0.001,1951.1,1950.8,6.86163544]
[1772449087194,0.001,1951.1,1950.8,5.58012171]
[1772449088790,0.001,1951.1,1950.8,6.86164499]
[1772449089262,5.5123866,1951.4,1950.9,5.58012171]
[1772449092490,5.5123866,1951.4,1951.0,6.86151586]
[1772449093194,5.49089579,1951.8,1951.3,5.99546747]
[1772449093361,6.77270275,1951.9,1951.3,5.99546747]
[1772449093767,5.49189579,1951.9,1951.3,5.99546747]
[1772449094408,0.001,1951.9,1951.5,5.99546747]
[1772449094563,0.001,1951.9,1951.5,7.27646794]
[1772449095274,5.49189579,1951.9,1951.5,7.27646794]
[1772449095597,5.49189579,1951.9,1951.5,5.99546747]
[1772449095896,5.49189579,1951.9,1951.5,7.27652232]
[1772449096663,0.001,1951.9,1951.5,7.27652232]
[1772449098695,5.58557898,1951.9,1951.5,7.27652232]
[1772449106482,5.58457898,1951.8,1951.3,9.18218814]
[1772449106821,5.58457898,1951.7,1951.1,6.7962789]